fUSD/lending_fUSD_20240322
["ID","MTS","AMOUNT","RATE_DAILY","PERIOD"]
[320093239,1711150242915,-1028.13,0.00021917,2]
[320093240,1711150242923,-500.0,0.00021917,2]
[320093241,1711150242933,-500.0,0.00021917,2]
[320093242,1711150242942,-1753.71,0.00021917,2]
[320093243,1711150242952,-1190.96,0.00021917,2]
[320093244,1711150242961,-500.0,0.00021917,2]
[320093245,1711150242970,-509.98,0.00021917,2]
[320093246,1711150242979,-500.0,0.00021917,2]
[320093247,1711150242988,-500.0,0.00021917,2]
[320093248,1711150242997,-1170.31,0.00021917,2]
[320093249,1711150243007,-500.58823832,0.00021917,2]
[320093250,1711150243015,-686.3,0.00021917,2]
[320093251,1711150243025,-500.0,0.00021917,2]
[320093252,1711150243034,-500.0,0.00021917,2]
[320093253,1711150243043,-2118.73,0.00021917,2]
[320093254,1711150243052,-500.0,0.00021917,2]
[320093255,1711150243061,-500.0,0.00021917,2]
[320093256,1711150243070,-500.0,0.00021917,2]
[320093257,1711150243079,-2302.72,0.00021917,2]
[320093258,1711150243088,-1514.64,0.00021917,2]
[320093259,1711150243097,-500.0,0.00021917,2]
[320093260,1711150243106,-955.15,0.00021917,2]
[320093261,1711150243115,-500.36065446,0.00021917,2]
[320093262,1711150243125,-500.0,0.00021917,2]
[320093263,1711150243134,-500.0,0.00021917,2]
[320093264,1711150243145,-500.0,0.00021917,2]
[320093265,1711150243155,-5162.72,0.00021917,2]
[320093266,1711150243164,-500.0,0.00021917,2]
[320093267,1711150243173,-739.14,0.00021917,2]
[320093268,1711150243183,-500.0,0.00021917,2]
[320093269,1711150243192,-505.27958945,0.00021917,2]
[320093270,1711150243202,-500.0,0.00021917,2]
[320093271,1711150243212,-500.0,0.00021917,2]
[320093272,1711150243221,-512.23269665,0.00021917,2]
[320093273,1711150243230,-500.0,0.00021917,2]
[320093274,1711150243240,-506.98029685,0.00021917,2]
[320093275,1711150243250,-500.0,0.00021917,2]
[320093276,1711150243261,-1276.61,0.00021917,2]
[320093277,1711150243270,-2066.42,0.00021917,2]
[320093278,1711150243281,-500.0,0.00021917,2]
[320093279,1711150243290,-500.0,0.00021917,2]
[320093280,1711150243299,-500.0,0.00021917,2]
[320093282,1711150243308,-656.96,0.00021917,2]
[320093283,1711150243318,-513.85467512,0.00021917,2]
[320093285,1711150243327,-1352.87,0.00021917,2]
[320093287,1711150243336,-500.0,0.00021917,2]
[320093289,1711150243346,-500.0,0.00021917,2]
[320093291,1711150243355,-1459.58,0.00021917,2]
[320093293,1711150243365,-500.0,0.00021917,2]
[320093295,1711150243376,-1217.19,0.00021917,2]
[320093297,1711150243386,-4148.35,0.00021917,2]
[320093299,1711150243398,-1817.64,0.00021917,2]
[320093301,1711150243408,-1561.01,0.00021917,2]
[320093303,1711150243417,-3205.96,0.00021917,2]
[320093305,1711150243426,-500.0,0.00021917,2]
[320093307,1711150243435,-2138.96,0.00021917,2]
[320093309,1711150243444,-500.0,0.00021917,2]
[320093311,1711150243454,-500.0,0.00021917,2]
[320093313,1711150243464,-500.0,0.00021917,2]
[320093315,1711150243473,-1175.16,0.00021917,2]
[320093317,1711150243482,-6251.24,0.00021917,2]
[320093319,1711150243491,-500.0,0.00021917,2]
[320093321,1711150243500,-740.0,0.00021917,2]
[320093323,1711150243509,-2966.11,0.00021917,2]
[320093325,1711150243519,-500.0,0.00021917,2]
[320093327,1711150243527,-1144.6,0.00021917,2]
[320093328,1711150243537,-6202.62,0.00021917,2]
[320093330,1711150243547,-1045.98,0.00021917,2]
[320093332,1711150243556,-297.84509872,0.00021917,2]
[320093334,1711150243565,-1363.06,0.00021917,2]
[320093336,1711150243574,-15968.75,0.00021917,2]
[320093338,1711150243583,-1223.2,0.00021917,2]
[320093340,1711150243592,-500.0,0.00021917,2]
[320093342,1711150243601,-1810.72,0.00021917,2]
[320093344,1711150243610,-609.09,0.00021917,2]
[320093346,1711150243619,-500.0,0.00021917,2]
[320093348,1711150243628,-1320.34,0.00021917,2]
[320093350,1711150243638,-2595.56,0.00021917,2]
[320093352,1711150243647,-500.0,0.00021917,2]
[320093353,1711150243657,-701.16,0.00021917,2]
[320093354,1711150243666,-500.0,0.00021917,2]
[320093355,1711150243675,-15786.11,0.00021917,2]
[320093356,1711150243685,-1897.39,0.00021917,2]
[320093357,1711150243697,-15256.43,0.00021917,2]
[320093358,1711150243706,-505.26577617,0.00021917,2]
[320093359,1711150243715,-500.0,0.00021917,2]
[320093360,1711150243725,-1187.35,0.00021917,2]
[320093361,1711150243734,-1140.11,0.00021917,2]
[320093362,1711150243743,-1298.27,0.00021917,2]
[320093363,1711150243752,-500.0,0.00021917,2]
[320093364,1711150243761,-1206.85,0.00021917,2]
[320093365,1711150243771,-1308.95,0.00021917,2]
[320093366,1711150243783,-1354.81,0.00021917,2]
[320093367,1711150243793,-764.78,0.00021917,2]
[320093368,1711150243801,-3640.29,0.00021917,2]
[320093369,1711150243810,-926.08,0.00021917,2]
[320093370,1711150243819,-3805.74,0.00021917,2]
[320093371,1711150243828,-500.0,0.00021917,2]
[320093372,1711150243837,-768.44,0.00021917,2]
[320093373,1711150243846,-4275.25,0.00021917,2]
[320093374,1711150243855,-19473.17,0.00021917,2]
[320093375,1711150243864,-500.0,0.00021917,2]
[320093376,1711150243873,-577.83213361,0.00021917,2]
[320093377,1711150243883,-289.59138704,0.00021917,2]
[320093378,1711150243892,-1341.51,0.00021917,2]
[320093379,1711150243902,-500.0,0.00021917,2]
[320093380,1711150243911,-3521.87,0.00021917,2]
[320093381,1711150243920,-14273.47,0.00021917,2]
[320093382,1711150243930,-1530.85,0.00021917,2]
[320093383,1711150243939,-2965.45,0.00021917,2]
[320093384,1711150243948,-562.0619341,0.00021917,2]
[320093385,1711150243957,-500.0,0.00021917,2]
[320093386,1711150243966,-500.0,0.00021917,2]
[320093387,1711150243975,-500.0,0.00021917,2]
[320093388,1711150243984,-2364.7,0.00021917,2]
[320093389,1711150243993,-734.17,0.00021917,2]
[320093390,1711150244002,-500.0,0.00021917,2]
[320093391,1711150244011,-500.0,0.00021917,2]
[320093392,1711150244020,-8949.94,0.00021917,2]
[320093393,1711150244028,-501.49355182,0.00021917,2]
[320093394,1711150244038,-777.56,0.00021917,2]
[320093395,1711150244047,-77543.54,0.00021917,2]
[320093396,1711150244056,-500.0,0.00021917,2]
[320093397,1711150244065,-4630.54,0.00021917,2]
[320093398,1711150244074,-500.0,0.00021917,2]
[320093399,1711150244083,-6507.09,0.00021917,2]
[320093400,1711150244091,-1022.31,0.00021917,2]
[320093401,1711150244100,-500.0,0.00021917,2]
[320093402,1711150244109,-4193.7,0.00021917,2]
[320093403,1711150244118,-1492.57,0.00021917,2]
[320093404,1711150244127,-500.0,0.00021917,2]
[320093405,1711150244136,-500.0,0.00021917,2]
[320093406,1711150244145,-500.0,0.00021917,2]
[320093407,1711150244154,-500.0,0.00021917,2]
[320093408,1711150244164,-938.29,0.00021917,2]
[320093409,1711150244173,-500.0,0.00021917,2]
[320093410,1711150244182,-206.53620488,0.00021917,2]
[320093411,1711150244191,-1389.65,0.00021917,2]
[320093412,1711150244200,-3266.59,0.00021917,2]
[320093413,1711150244209,-2888.62,0.00021917,2]
[320093414,1711150244218,-7261.71,0.00021917,2]
[320093415,1711150244227,-500.0,0.00021917,2]
[320093416,1711150244236,-500.0,0.00021917,2]
[320093417,1711150244245,-358.77237963,0.00021917,2]
[320093418,1711150244254,-500.0,0.00021917,2]
[320093419,1711150244263,-3639.25,0.00021917,2]
[320093420,1711150244272,-500.0,0.00021917,2]
[320093421,1711150244281,-5877.66,0.00021917,2]
[320093422,1711150244290,-516.62454642,0.00021917,2]
[320093423,1711150244299,-500.0,0.00021917,2]
[320093424,1711150244308,-500.0,0.00021917,2]
[320093425,1711150244319,-500.0,0.00021917,2]
[320093426,1711150244329,-569.58,0.00021917,2]
[320093427,1711150244338,-743.41,0.00021917,2]
[320093428,1711150244347,-790.67,0.00021917,2]
[320093429,1711150244357,-500.0,0.00021917,2]
[320093430,1711150244366,-500.0,0.00021917,2]
[320093431,1711150244376,-4086.88,0.00021917,2]
[320093432,1711150244385,-2931.44,0.00021917,2]
[320093433,1711150244394,-580.83,0.00021917,2]
[320093434,1711150244405,-1309.3,0.00021917,2]
[320093435,1711150244414,-855.7,0.00021917,2]
[320093436,1711150244423,-2537.11,0.00021917,2]
[320093437,1711150244432,-1610.57,0.00021917,2]
[320093438,1711150244442,-500.0,0.00021917,2]
[320093439,1711150244451,-34852.49,0.00021917,2]
[320093440,1711150244461,-10990.97,0.00021917,2]
[320093441,1711150244470,-500.0,0.00021917,2]
[320093442,1711150244479,-791.67,0.00021917,2]
[320093443,1711150244488,-500.0,0.00021917,2]
[320093444,1711150244497,-500.0,0.00021917,2]
[320093445,1711150244506,-580.34959951,0.00021917,2]
[320093446,1711150244515,-898.61,0.00021917,2]
[320093447,1711150244524,-1054.16,0.00021917,2]
[320093448,1711150244533,-9160.53,0.00021917,2]
[320093449,1711150244541,-1895.37,0.00021917,2]
[320093450,1711150244550,-500.0,0.00021917,2]
[320093451,1711150244559,-644.89,0.00021917,2]
[320093452,1711150244568,-956.38,0.00021917,2]
[320093453,1711150244577,-500.0,0.00021917,2]
[320093454,1711150244586,-500.0,0.00021917,2]
[320093455,1711150244595,-601.62,0.00021917,2]
[320093456,1711150244603,-753.89,0.00021917,2]
[320093457,1711150244613,-979.51,0.00021917,2]
[320093458,1711150244622,-500.0,0.00021917,2]
[320093459,1711150244631,-500.0,0.00021917,2]
[320093460,1711150244640,-2553.08,0.00021917,2]
[320093461,1711150244649,-978.33,0.00021917,2]
[320093462,1711150244658,-500.0,0.00021917,2]
[320093463,1711150244667,-500.0,0.00021917,2]
[320093464,1711150244676,-566.82,0.00021917,2]
[320093465,1711150244685,-3087.7,0.00021917,2]
[320093466,1711150244694,-29847.76338084,0.00021917,2]
[320093467,1711150245447,-276.597,0.00021917,2]
[320093468,1711150245466,-605.0,0.00021917,2]
[320093469,1711150245477,-9452.06184582,0.00021917,2]
[320093622,1711150247803,-194.0147326,0.00021906,2]
[320093624,1711150247813,-2263.53777334,0.00021917,2]
[320093627,1711150247822,-3292.54,0.00021917,2]
[320093628,1711150247832,-1848.68,0.00021917,2]
[320093631,1711150247842,-2623.49,0.00021917,2]
[320093633,1711150247888,-2880.22,0.00021917,2]
[320093634,1711150247914,-500.0,0.00021917,2]
[320093636,1711150247923,-500.0,0.00021917,2]
[320093639,1711150247934,-1945.79,0.00021917,2]
[320093640,1711150247943,-5606.64,0.00021917,2]
[320093641,1711150247952,-500.0,0.00021917,2]
[320093642,1711150247961,-500.0,0.00021917,2]
[320093643,1711150247971,-500.0,0.00021917,2]
[320093644,1711150247980,-500.0,0.00021917,2]
[320093645,1711150247990,-1842.28,0.00021917,2]
[320093646,1711150247999,-1149.71,0.00021917,2]
[320093647,1711150248008,-10984.91,0.00021917,2]
[320093648,1711150248017,-2167.44,0.00021917,2]
[320093649,1711150248027,-151.53608235,0.00021917,2]
[320093650,1711150248036,-500.0,0.00021917,2]
[320093651,1711150248045,-500.0,0.00021917,2]
[320093652,1711150248054,-10577.58,0.00021917,2]
[320093654,1711150248064,-2300.72,0.00021917,2]
[320093656,1711150248073,-500.0,0.00021917,2]
[320093658,1711150248082,-6595.65,0.00021917,2]
[320093660,1711150248091,-754.5,0.00021917,2]
[320093662,1711150248101,-1996.25,0.00021917,2]
[320093665,1711150248111,-349.0,0.00021917,2]
[320093667,1711150248120,-500.0,0.00021917,2]
[320093669,1711150248129,-1380.32,0.00021917,2]
[320093671,1711150248138,-500.0,0.00021917,2]
[320093673,1711150248147,-9976.55,0.00021917,2]
[320093675,1711150248157,-500.0,0.00021917,2]
[320093677,1711150248167,-2003.26,0.00021917,2]
[320093679,1711150248176,-2684.12,0.00021917,2]
[320093681,1711150248186,-3529.74,0.00021917,2]
[320093683,1711150248196,-500.0,0.00021917,2]
[320093685,1711150248205,-500.0,0.00021917,2]
[320093686,1711150248214,-500.0,0.00021917,2]
[320093687,1711150248224,-500.0,0.00021917,2]
[320093688,1711150248235,-530.29,0.00021917,2]
[320093689,1711150248244,-2537.34,0.00021917,2]
[320093690,1711150248253,-500.0,0.00021917,2]
[320093691,1711150248263,-910.47,0.00021917,2]
[320093692,1711150248272,-1608.32,0.00021917,2]
[320093693,1711150248282,-3711.91,0.00021917,2]
[320093694,1711150248291,-2811.49,0.00021917,2]
[320093695,1711150248311,-500.0,0.00021917,2]
[320093696,1711150248322,-500.0,0.00021917,2]
[320093697,1711150248332,-500.0,0.00021917,2]
[320093698,1711150248342,-9940.58,0.00021917,2]
[320093699,1711150248352,-500.0,0.00021917,2]
[320093700,1711150248362,-730.41,0.00021917,2]
[320093701,1711150248373,-500.0,0.00021917,2]
[320093702,1711150248383,-758.1,0.00021917,2]
[320093703,1711150248392,-2775.08,0.00021917,2]
[320093704,1711150248402,-500.0,0.00021917,2]
[320093705,1711150248412,-500.0,0.00021917,2]
[320093706,1711150248422,-1317.93,0.00021917,2]
[320093707,1711150248431,-986.38,0.00021917,2]
[320093708,1711150248441,-768.21,0.00021917,2]
[320093709,1711150248451,-500.0,0.00021917,2]
[320093710,1711150248461,-500.0,0.00021917,2]
[320093711,1711150248470,-500.0,0.00021917,2]
[320093712,1711150248480,-23773.27,0.00021917,2]
[320093713,1711150248490,-500.0,0.00021917,2]
[320093714,1711150248500,-1431.31,0.00021917,2]
[320093715,1711150248509,-5138.14,0.00021917,2]
[320093716,1711150248519,-500.0,0.00021917,2]
[320093717,1711150248528,-500.0,0.00021917,2]
[320093718,1711150248538,-973.8,0.00021917,2]
[320093719,1711150248548,-814.89,0.00021917,2]
[320093720,1711150248557,-500.0,0.00021917,2]
[320093721,1711150248567,-5251.86,0.00021917,2]
[320093722,1711150248577,-782.76,0.00021917,2]
[320093723,1711150248586,-21282.23,0.00021917,2]
[320093724,1711150248596,-4988.22,0.00021917,2]
[320093725,1711150248605,-500.0,0.00021917,2]
[320093726,1711150248616,-2832.01,0.00021917,2]
[320093727,1711150248625,-21147.36,0.00021917,2]
[320093728,1711150248635,-1013.23,0.00021917,2]
[320093729,1711150248644,-500.0,0.00021917,2]
[320093730,1711150248654,-9094.35,0.00021917,2]
[320093731,1711150248664,-1104.78,0.00021917,2]
[320093732,1711150248673,-505.55,0.00021917,2]
[320093733,1711150248683,-500.0,0.00021917,2]
[320093734,1711150248693,-4201.97,0.00021917,2]
[320093735,1711150248703,-3826.21,0.00021917,2]
[320093736,1711150248713,-500.0,0.00021917,2]
[320093737,1711150248722,-500.0,0.00021917,2]
[320093738,1711150248733,-500.0,0.00021917,2]
[320093739,1711150248743,-3675.15,0.00021917,2]
[320093740,1711150248752,-500.0,0.00021917,2]
[320093741,1711150248762,-1809.35,0.00021917,2]
[320093742,1711150248772,-992.35,0.00021917,2]
[320093743,1711150248781,-500.0,0.00021917,2]
[320093744,1711150248791,-500.0,0.00021917,2]
[320093745,1711150248801,-2178.16,0.00021917,2]
[320093746,1711150248812,-500.0,0.00021917,2]
[320093747,1711150248824,-16254.86,0.00021917,2]
[320093748,1711150248833,-500.0,0.00021917,2]
[320093749,1711150248845,-1690.36,0.00021917,2]
[320093750,1711150248857,-1467.05,0.00021917,2]
[320093751,1711150248866,-500.0,0.00021917,2]
[320093752,1711150248877,-25782.03,0.00021917,2]
[320093753,1711150248887,-2284.45,0.00021917,2]
[320093754,1711150248897,-1542.85,0.00021917,2]
[320093755,1711150248907,-584.6,0.00021917,2]
[320093756,1711150248917,-3607.31,0.00021917,2]
[320093757,1711150248929,-914.61,0.00021917,2]
[320093758,1711150248938,-1747.45,0.00021917,2]
[320093759,1711150248949,-6795.35736195,0.00021917,2]
[320093760,1711150249224,-420.72271198,0.00021917,2]
[320093761,1711150249289,-25954.14992607,0.00021917,2]
[320093762,1711150249299,-500.0,0.00021917,2]
[320093763,1711150249309,-500.0,0.00021917,2]
[320093764,1711150249319,-2019.27,0.00021917,2]
[320093765,1711150249329,-500.0,0.00021917,2]
[320093766,1711150249338,-9178.56,0.00021917,2]
[320093767,1711150249348,-3374.06,0.00021917,2]
[320093768,1711150249357,-1507.58,0.00021917,2]
[320093769,1711150249367,-588.92,0.00021917,2]
[320093770,1711150249378,-500.0,0.00021917,2]
[320093771,1711150249388,-500.0,0.00021917,2]
[320093772,1711150249397,-500.0,0.00021917,2]
[320093773,1711150249408,-3731.67,0.00021917,2]
[320093774,1711150249418,-500.0,0.00021917,2]
[320093775,1711150249427,-1223.43,0.00021917,2]
[320093776,1711150249437,-20288.53,0.00021917,2]
[320093777,1711150249447,-2672.99,0.00021917,2]
[320093778,1711150249456,-500.0,0.00021917,2]
[320093779,1711150249466,-500.0,0.00021917,2]
[320093780,1711150249475,-534.6,0.00021917,2]
[320093781,1711150249484,-669.57,0.00021917,2]
[320093782,1711150249494,-500.0,0.00021917,2]
[320093783,1711150249504,-500.0,0.00021917,2]
[320093784,1711150249513,-500.0,0.00021917,2]
[320093785,1711150249523,-1478.78,0.00021917,2]
[320093786,1711150249532,-500.0,0.00021917,2]
[320093787,1711150249542,-1547.64,0.00021917,2]
[320093788,1711150249552,-500.0,0.00021917,2]
[320093789,1711150249562,-500.0,0.00021917,2]
[320093790,1711150249572,-3377.53,0.00021917,2]
[320093791,1711150249581,-793.71,0.00021917,2]
[320093792,1711150249591,-4176.82,0.00021917,2]
[320093793,1711150249601,-1636.79,0.00021917,2]
[320093794,1711150249610,-1549.28,0.00021917,2]
[320093795,1711150249620,-5532.1,0.00021917,2]
[320093796,1711150249629,-239.86,0.00021917,2]
[320093797,1711150249639,-500.0,0.00021917,2]
[320093798,1711150249648,-641.42,0.00021917,2]
[320093799,1711150249659,-4239.98,0.00021917,2]
[320093800,1711150249668,-1099.66,0.00021917,2]
[320093801,1711150249677,-500.0,0.00021917,2]
[320093802,1711150249687,-1528.23,0.00021917,2]
[320093803,1711150249697,-5156.99,0.00021917,2]
[320093804,1711150249706,-534.36,0.00021917,2]
[320093805,1711150249716,-1197.39,0.00021917,2]
[320093806,1711150249725,-1395.13,0.00021917,2]
[320093807,1711150249736,-269.67405595,0.00021917,2]
[320093808,1711150249746,-500.0,0.00021917,2]
[320093809,1711150249756,-7300.65,0.00021917,2]
[320093810,1711150249766,-3811.99,0.00021917,2]
[320093811,1711150249776,-2677.02,0.00021917,2]
[320093812,1711150249786,-1099.74,0.00021917,2]
[320093813,1711150249796,-500.0,0.00021917,2]
[320093814,1711150249806,-3746.3,0.00021917,2]
[320093815,1711150249815,-1995.1,0.00021917,2]
[320093816,1711150249825,-2952.75,0.00021917,2]
[320093817,1711150249943,-500.0,0.00021917,2]
[320093818,1711150249953,-4777.83,0.00021917,2]
[320093819,1711150249963,-660.41,0.00021917,2]
[320093820,1711150249974,-500.0,0.00021917,2]
[320093821,1711150249985,-1917.21,0.00021917,2]
[320093822,1711150249994,-679.72,0.00021917,2]
[320093823,1711150250004,-502.58733102,0.00021917,2]
[320093824,1711150250014,-500.0,0.00021917,2]
[320093825,1711150250025,-678.28,0.00021917,2]
[320093826,1711150250036,-500.0,0.00021917,2]
[320093827,1711150250046,-723.15,0.00021917,2]
[320093828,1711150250056,-920.4,0.00021917,2]
[320093829,1711150250067,-6117.08,0.00021917,2]
[320093830,1711150250077,-3362.91,0.00021917,2]
[320093831,1711150250086,-1403.52,0.00021917,2]
[320093832,1711150250096,-7814.58,0.00021917,2]
[320093833,1711150250106,-1509.48,0.00021917,2]
[320093834,1711150250117,-500.0,0.00021917,2]
[320093835,1711150250128,-500.0,0.00021917,2]
[320093836,1711150250137,-500.0,0.00021917,2]
[320093837,1711150250148,-3623.91,0.00021917,2]
[320093838,1711150250159,-9723.97,0.00021917,2]
[320093839,1711150250170,-778.91,0.00021917,2]
[320093840,1711150250180,-2981.93,0.00021917,2]
[320093841,1711150250191,-500.0,0.00021917,2]
[320093842,1711150250202,-3202.48,0.00021917,2]
[320093843,1711150250212,-7059.12,0.00021917,2]
[320093844,1711150250222,-500.0,0.00021917,2]
[320093845,1711150250232,-9558.7,0.00021917,2]
[320093846,1711150250242,-500.0,0.00021917,2]
[320093847,1711150250253,-649.85,0.00021917,2]
[320093848,1711150250264,-983.63,0.00021917,2]
[320093849,1711150250274,-500.0,0.00021917,2]
[320093850,1711150250285,-1910.55,0.00021917,2]
[320093851,1711150250297,-803.52,0.00021917,2]
[320093852,1711150250308,-1982.88,0.00021917,2]
[320093853,1711150250318,-500.0,0.00021917,2]
[320093854,1711150250328,-500.0,0.00021917,2]
[320093855,1711150250339,-500.0,0.00021917,2]
[320093856,1711150250349,-1031.74,0.00021917,2]
[320093857,1711150250359,-500.0,0.00021917,2]
[320093858,1711150250372,-2132.2,0.00021917,2]
[320093859,1711150250382,-2325.27,0.00021917,2]
[320093860,1711150250394,-4381.88,0.00021917,2]
[320093861,1711150250405,-1157.35,0.00021917,2]
[320093862,1711150250415,-7650.92,0.00021917,2]
[320093863,1711150250425,-504.49088185,0.00021917,2]
[320093864,1711150250436,-2121.05,0.00021917,2]
[320093865,1711150250446,-500.0,0.00021917,2]
[320093866,1711150250457,-3381.9,0.00021917,2]
[320093867,1711150250468,-500.0,0.00021917,2]
[320093868,1711150250478,-595.76,0.00021917,2]
[320093869,1711150250489,-500.0,0.00021917,2]
[320093870,1711150250500,-535.17,0.00021917,2]
[320093871,1711150250511,-500.0,0.00021917,2]
[320093872,1711150250521,-500.0,0.00021917,2]
[320093873,1711150250531,-502.98360365,0.00021917,2]
[320093874,1711150250541,-3841.3,0.00021917,2]
[320093875,1711150250552,-250.0,0.00021918,2]
[320093876,1711150250563,-1000.0,0.00021918,3]
[320093877,1711150250573,-1533.72,0.00021918,10]
[320093878,1711150250584,-6372.2168104,0.00021925,2]
[320093879,1711150250595,-114639.249941,0.0002194,2]
[320093880,1711150250607,-29915.4292734,0.00021955,2]
[320093881,1711150250618,-780.27085357,0.00022,2]
[320093882,1711150250629,-643.74221686,0.00022,2]
[320093883,1711150250640,-253.9,0.00022,2]
[320093884,1711150250650,-1200.0,0.00022,23]
[320093885,1711150250661,-19116.63843756,0.00022026,2]
[320093886,1711150250672,-347.95569131,0.0002209,2]
[320093887,1711150250682,-4933.4552964,0.00022115,2]
[320093888,1711150250694,-200.0,0.00022136,2]
[320093889,1711150250705,-200.0,0.00022136,2]
[320093890,1711150250715,-345.032306,0.00022148,2]
[320093891,1711150250725,-345.032306,0.00022148,2]
[320093892,1711150250737,-345.032306,0.00022148,2]
[320093893,1711150250748,-345.032306,0.00022148,2]
[320093894,1711150250758,-345.032306,0.00022148,2]
[320093895,1711150250769,-345.032306,0.00022148,3]
[320093896,1711150250779,-345.032306,0.00022148,3]
[320093897,1711150250789,-345.032306,0.00022148,3]
[320093898,1711150250799,-345.032306,0.00022148,3]
[320093899,1711150250810,-345.032306,0.00022148,3]
[320093900,1711150250820,-500.0,0.00022191,2]
[320093901,1711150250830,-545.39022826,0.00022191,2]
[320093902,1711150250841,-500.0,0.00022191,2]
[320093903,1711150250851,-500.0,0.00022191,2]
[320093904,1711150250862,-838.29,0.00022191,2]
[320093905,1711150250872,-500.0,0.00022191,2]
[320093906,1711150250882,-500.0,0.00022191,2]
[320093907,1711150250892,-521.22,0.00022191,2]
[320093908,1711150250903,-503.95,0.00022191,2]
[320093909,1711150250913,-500.0,0.00022191,2]
[320093910,1711150250924,-500.0,0.00022191,2]
[320093911,1711150250934,-500.0,0.00022191,2]
[320093912,1711150250944,-500.0,0.00022191,2]
[320093913,1711150250955,-500.0,0.00022191,2]
[320093914,1711150250965,-623.46,0.00022191,2]
[320093915,1711150250976,-500.0,0.00022191,2]
[320093916,1711150250986,-500.0,0.00022191,2]
[320093917,1711150250996,-553.53,0.00022191,2]
[320093918,1711150251006,-1405.8,0.00022191,2]
[320093919,1711150251016,-568.88,0.00022191,2]
[320093920,1711150251026,-500.0,0.00022191,2]
[320093921,1711150251036,-500.0,0.00022191,2]
[320093922,1711150251045,-500.0,0.00022191,2]
[320093923,1711150251055,-700.06,0.00022191,2]
[320093924,1711150251065,-500.0,0.00022191,2]
[320093925,1711150251075,-500.0,0.00022191,2]
[320093926,1711150251084,-500.0,0.00022191,2]
[320093927,1711150251094,-500.0,0.00022191,2]
[320093928,1711150251103,-500.0,0.00022191,2]
[320093929,1711150251113,-500.0,0.00022191,2]
[320093930,1711150251123,-500.0,0.00022191,2]
[320093931,1711150251133,-500.0,0.00022191,2]
[320093932,1711150251142,-620.76,0.00022191,2]
[320093933,1711150251151,-500.0,0.00022191,2]
[320093934,1711150251161,-500.0,0.00022191,2]
[320093935,1711150251171,-500.0,0.00022191,2]
[320093936,1711150251180,-500.0,0.00022191,2]
[320093937,1711150251189,-500.0,0.00022191,2]
[320093938,1711150251199,-873.88,0.00022191,2]
[320093939,1711150251208,-500.0,0.00022191,2]
[320093940,1711150251217,-500.0,0.00022191,2]
[320093941,1711150251227,-500.0,0.00022191,2]
[320093942,1711150251237,-633.69,0.00022191,2]
[320093943,1711150251247,-500.0,0.00022191,2]
[320093944,1711150251257,-668.23,0.00022191,2]
[320093945,1711150251267,-500.0,0.00022191,2]
[320093946,1711150251278,-508.89207619,0.00022191,2]
[320093947,1711150251288,-500.0,0.00022191,2]
[320093948,1711150251298,-500.0,0.00022191,2]
[320093949,1711150251308,-500.0,0.00022191,2]
[320093950,1711150251318,-500.0,0.00022191,2]
[320093951,1711150251328,-505.15963274,0.00022191,2]